bitfinex/quotes_BTCUSD_20251120
["timestamp","ask_amount","ask_price","bid_price","bid_amount"]
[1763643725967,0.04766427,91887.0,91886.0,4.199e-05]
[1763643726218,0.07133427,91887.0,91886.0,4.199e-05]
[1763643727560,0.07233427,91887.0,91886.0,4.199e-05]
[1763643728159,0.07333427,91887.0,91886.0,4.199e-05]
[1763643728359,0.02238427,91887.0,91886.0,0.217703]
[1763643729011,0.00568,91887.0,91886.0,0.258593]
[1763643729850,0.00568,91887.0,91886.0,0.233783]
[1763643730254,0.00568,91887.0,91886.0,0.23427628]
[1763643730654,0.002,91887.0,91886.0,0.23427628]
[1763643730860,0.00368,91887.0,91886.0,0.23427628]
[1763643731275,0.00568,91887.0,91886.0,0.23427628]
[1763643731476,0.00568,91887.0,91886.0,0.25908628]
[1763643731712,0.002,91887.0,91886.0,0.25908628]
[1763643731916,0.00568,91887.0,91886.0,0.25908628]
[1763643732119,0.002,91887.0,91886.0,0.35469613]
[1763643732471,0.00171161,91887.0,91886.0,0.35469613]
[1763643733420,0.00071161,91887.0,91886.0,0.35469613]
[1763643733663,0.00071161,91887.0,91886.0,0.25908628]
[1763643733865,0.00368,91899.0,91898.0,0.21763259]
[1763643733992,0.00368,91899.0,91898.0,1.3290336]
[1763643734194,0.00368,91899.0,91898.0,1.3538436]
[1763643735082,0.00568,91899.0,91898.0,1.3538436]
[1763643735903,0.00568,91899.0,91898.0,1.3290336]
[1763643736923,0.00568,91899.0,91898.0,1.3129536]
[1763643737372,0.00568,91899.0,91896.0,0.01088186]
[1763643737556,0.01582,91897.0,91896.0,0.01088186]
[1763643737770,0.03949,91897.0,91894.0,0.22852416]
[1763643737924,0.01086,91894.0,91890.0,1.08467101]
[1763643738113,0.02367,91893.0,91890.0,1.31320509]
[1763643738315,0.01582,91891.0,91890.0,1.31320509]
[1763643738550,0.01582,91891.0,91890.0,1.09555358]
[1763643738754,0.01086,91894.0,91893.0,0.21764443]
[1763643738965,0.01086,91894.0,91891.0,0.01088245]
[1763643739168,0.01086,91894.0,91890.0,1.08467101]
[1763643739350,0.03453,91894.0,91890.0,1.09555358]
[1763643739752,0.03453,91894.0,91893.0,0.21793457]
[1763643739952,0.01086,91894.0,91893.0,0.21793457]
[1763643740149,0.05135,91894.0,91893.0,0.00029014]
[1763643740352,0.05235,91894.0,91893.0,0.00029014]
[1763643740539,0.05135,91894.0,91893.0,0.00029014]
[1763643740738,0.05035,91894.0,91893.0,0.00029014]
[1763643741080,0.05235,91894.0,91893.0,0.00029014]
[1763643741289,0.05135,91894.0,91893.0,0.00029014]
[1763643741586,0.05035,91894.0,91893.0,0.00029014]
[1763643741760,0.05135,91894.0,91893.0,0.00029014]
[1763643742607,0.05235,91894.0,91893.0,0.00029014]
[1763643743571,0.10445249,91894.0,91893.0,0.00029014]
[1763643744584,0.10345249,91894.0,91893.0,0.00029014]
[1763643744988,0.10445249,91894.0,91893.0,0.00029014]
[1763643745185,0.12481529,91894.0,91893.0,0.00029014]
[1763643746032,0.12381529,91894.0,91893.0,0.00029014]
[1763643746449,0.12481529,91894.0,91893.0,0.00029014]
[1763643747065,0.07577249,91893.0,91881.0,0.22825781]
[1763643747249,0.01146,91883.0,91882.0,0.2286044]
[1763643747443,0.01514,91883.0,91882.0,0.2286044]
[1763643747658,0.01514,91883.0,91882.0,0.01093391]
[1763643747848,0.05463,91883.0,91882.0,5.039e-05]
[1763643749264,0.05563,91883.0,91882.0,5.039e-05]
[1763643750080,0.05663,91883.0,91882.0,5.039e-05]
[1763643750774,0.07702081,91883.0,91882.0,5.039e-05]
[1763643751412,0.07602081,91883.0,91882.0,5.039e-05]
[1763643751843,0.07702081,91883.0,91882.0,5.039e-05]
[1763643751999,0.07602081,91883.0,91882.0,5.039e-05]
[1763643752460,0.07702081,91883.0,91882.0,5.039e-05]
[1763643752642,0.07602081,91883.0,91882.0,5.039e-05]
[1763643752841,0.07502081,91883.0,91882.0,0.0003696]
[1763643753049,0.07602081,91883.0,91882.0,0.0003696]
[1763643753225,0.07702081,91883.0,91882.0,0.0003696]
[1763643753831,0.07702081,91883.0,91882.0,0.21804009]
[1763643754236,0.07702081,91883.0,91882.0,0.0003696]
[1763643755171,0.07602081,91883.0,91882.0,0.0003696]
[1763643755616,0.07702081,91883.0,91882.0,0.0003696]
[1763643755835,0.07602081,91883.0,91882.0,0.0003696]
[1763643756003,0.07502081,91883.0,91882.0,0.0003696]
[1763643756150,0.07702081,91883.0,91882.0,0.0003696]
[1763643756770,0.07602081,91883.0,91882.0,0.0003696]
[1763643756967,0.07702081,91883.0,91882.0,0.0003696]
[1763643757173,0.07701829,91883.0,91882.0,0.0003696]
[1763643757789,0.1042268,91883.0,91882.0,0.0003696]
[1763643759693,0.15632929,91883.0,91882.0,0.0003696]
[1763643760652,0.37399741,91883.0,91882.0,0.0003696]
[1763643760854,0.12912078,91883.0,91882.0,0.0003696]
[1763643761059,0.15632929,91883.0,91882.0,0.0003696]
[1763643764366,0.37399741,91883.0,91882.0,0.0003696]
[1763643764568,0.3467889,91883.0,91882.0,0.0003696]
[1763643764993,0.6687889,91883.0,91882.0,0.0003696]
[1763643765239,0.6697889,91883.0,91882.0,0.0003696]
[1763643765373,0.68267455,91883.0,91882.0,0.0003696]
[1763643766206,0.46500643,91883.0,91882.0,0.0003696]
[1763643766403,0.68267455,91883.0,91882.0,0.0003696]
[1763643767434,0.46500643,91883.0,91882.0,0.0003696]
[1763643769020,0.68267455,91883.0,91882.0,0.0003696]
[1763643770774,0.46500643,91883.0,91882.0,0.0003696]
[1763643771207,0.68267455,91883.0,91882.0,0.0003696]
[1763643771644,0.71636369,91883.0,91882.0,0.0003696]
[1763643772293,0.71236369,91883.0,91882.0,0.0003696]
[1763643772512,0.71436369,91883.0,91882.0,0.0003696]
[1763643772728,0.7457291,91883.0,91882.0,0.0003696]
[1763643773371,0.52806098,91883.0,91882.0,0.0003696]
[1763643773570,0.7457291,91883.0,91882.0,0.0003696]
[1763643773892,0.7437291,91883.0,91882.0,0.0003696]
[1763643774145,0.49501557,91883.0,91882.0,0.0003696]
[1763643774372,0.44291308,91883.0,91882.0,0.0003696]
[1763643774578,0.45932643,91883.0,91882.0,0.0003696]
[1763643774782,0.46100643,91883.0,91882.0,0.0003696]
[1763643774992,0.45212078,91883.0,91882.0,0.0003696]
[1763643775193,0.13112078,91883.0,91882.0,0.0003696]
[1763643775426,0.15432929,91883.0,91882.0,0.0003696]
[1763643775847,0.15832929,91883.0,91882.0,0.0003696]
[1763643778519,0.13112078,91883.0,91882.0,0.0003696]
[1763643779916,0.07533829,91883.0,91882.0,0.0003696]
[1763643780119,0.05534829,91883.0,91882.0,0.21804009]
[1763643780359,0.07999829,91883.0,91882.0,0.0003696]
[1763643780558,0.13210078,91883.0,91882.0,0.0003696]
[1763643782283,0.69997741,91883.0,91882.0,0.0003696]
[1763643782490,0.70649481,91883.0,91882.0,0.0003696]
[1763643783101,0.76856323,91883.0,91882.0,0.0003696]
[1763643783532,0.76656323,91883.0,91882.0,0.0003696]
[1763643784413,0.54889511,91883.0,91882.0,0.0003696]
[1763643784747,0.55089511,91883.0,91882.0,0.0003696]
[1763643784950,0.5215297,91883.0,91882.0,0.0003696]
[1763643785729,0.51132187,91883.0,91882.0,0.0003696]
[1763643785926,0.52152982,91883.0,91882.0,0.0003696]
[1763643787170,0.73919794,91883.0,91882.0,0.0003696]
[1763643791837,0.5679998,91883.0,91882.0,0.0003696]
[1763643792028,0.78566792,91883.0,91882.0,0.0003696]
[1763643792185,0.78566826,91883.0,91882.0,0.0003696]
[1763643792386,0.75626837,91883.0,91882.0,0.0003696]
[1763643793271,0.75226837,91883.0,91882.0,0.0003696]
[1763643793488,0.47881776,91883.0,91882.0,0.0003696]
[1763643793710,0.11004466,91883.0,91882.0,0.0003696]
[1763643793933,0.03128,91883.0,91882.0,0.21804009]
[1763643794183,0.03955408,91883.0,91882.0,0.21804009]
[1763643794387,0.03555408,91883.0,91882.0,0.21804009]
[1763643794600,0.03387408,91883.0,91882.0,0.21804009]
[1763643794823,0.03955408,91883.0,91882.0,0.21804009]
[1763643795021,0.03587408,91883.0,91882.0,0.21804009]
[1763643795223,0.03955408,91883.0,91882.0,0.21804009]
[1763643795432,0.02441408,91883.0,91882.0,0.24497009]
[1763643795631,0.004,91883.0,91882.0,0.26819009]
[1763643795765,0.00368,91883.0,91882.0,0.26819009]
[1763643796160,0.00768,91883.0,91882.0,0.26819009]
[1763643796392,0.00568,91883.0,91882.0,0.26819009]
[1763643796591,0.00368,91883.0,91882.0,0.26819009]
[1763643797048,0.02353,91901.0,91882.0,0.26819009]
[1763643797049,0.02306,91908.0,91897.0,0.01088174]
[1763643797247,0.00095053,91910.0,91909.0,0.21760654]
[1763643797446,0.025005,91910.0,91909.0,0.21760654]
[1763643797606,0.02132414,91910.0,91909.0,0.21760654]
[1763643797822,0.00463053,91910.0,91909.0,0.23388654]
[1763643798010,0.00463053,91910.0,91909.0,0.25710654]
[1763643798630,0.00463053,91910.0,91909.0,0.23388654]
[1763643798846,0.00463053,91910.0,91907.0,1.30228099]
[1763643799047,0.00463053,91910.0,91908.0,0.21760779]
[1763643799256,0.00563053,91910.0,91908.0,0.21760779]
[1763643799452,0.00463053,91910.0,91908.0,0.21760779]
[1763643799866,0.00663053,91910.0,91908.0,0.21760779]
[1763643800061,0.00563053,91910.0,91908.0,0.21760779]
[1763643800786,0.00663053,91910.0,91909.0,0.01628]
[1763643801073,0.00295053,91910.0,91909.0,0.0038]
[1763643802073,0.00095053,91910.0,91909.0,0.0038]
[1763643802300,0.00295053,91910.0,91909.0,0.04486437]
[1763643802524,0.00195053,91910.0,91909.0,0.0038]
[1763643802692,0.00095053,91910.0,91909.0,0.0038]
[1763643803177,0.00095053,91910.0,91909.0,0.0076]
[1763643803949,0.00095053,91910.0,91908.0,0.04772496]
[1763643804562,0.00095053,91910.0,91909.0,0.0038]
[1763643805180,0.00095053,91910.0,91909.0,0.0076]
[1763643805395,0.00095053,91910.0,91909.0,0.11676494]
[1763643805691,0.00095053,91910.0,91909.0,0.3306]
[1763643810480,0.02718957,91947.0,91909.0,0.3306]
[1763643810481,0.00902023,91950.0,91948.0,0.21751424]
[1763643810684,0.03678,91961.0,91951.0,0.21750715]
[1763643810882,0.03611934,91952.0,91951.0,0.21750715]
[1763643811033,0.03611934,91952.0,91950.0,0.21750937]
[1763643811216,0.02023934,91951.0,91950.0,0.21750931]
[1763643811398,0.02391934,91951.0,91950.0,0.21750931]
[1763643811774,0.001,91950.0,91949.0,0.22838747]
[1763643812175,0.02122179,91950.0,91949.0,0.22838747]
[1763643812375,0.0047221,91951.0,91950.0,0.21750951]
[1763643812694,0.0037221,91951.0,91950.0,0.21750951]
[1763643812898,0.0047221,91951.0,91950.0,0.21750951]
[1763643813074,0.0047221,91951.0,91949.0,0.01087559]
[1763643813266,0.02021713,91950.0,91949.0,0.22838643]
[1763643813467,0.02021713,91950.0,91949.0,0.22838747]
[1763643813779,0.02021713,91950.0,91948.0,0.0038]
[1763643813983,0.04849713,91949.0,91935.0,0.01087725]
[1763643814185,0.01593,91943.0,91939.0,0.21753437]
[1763643814383,0.01593,91943.0,91939.0,0.01087677]
[1763643814591,0.02495023,91940.0,91933.0,0.0038]
[1763643814828,0.01235,91934.0,91932.0,1.08467101]
[1763643814970,0.01593,91933.0,91932.0,1.08467101]
[1763643815174,0.00902023,91930.0,91919.0,1.08467101]
[1763643815409,0.02022296,91929.0,91919.0,1.08467101]
[1763643815621,0.0245,91929.0,91919.0,1.09555015]
[1763643816035,0.0245,91929.0,91924.0,0.01087855]
[1763643816239,0.02022789,91928.0,91922.0,0.21757483]
[1763643816464,0.02022789,91927.0,91919.0,1.09555015]
[1763643816582,0.01593,91920.0,91919.0,1.08467101]
[1763643816782,0.00368,91925.0,91919.0,1.08467101]
[1763643816982,0.00368,91925.0,91919.0,1.09555015]
[1763643817237,0.01593,91920.0,91919.0,1.08467101]
[1763643817738,0.01597207,91920.0,91919.0,1.08467101]
[1763643818484,0.04047207,91920.0,91919.0,1.08467101]
[1763643818741,0.06071479,91920.0,91919.0,1.08467101]
[1763643819542,0.02028479,91920.0,91919.0,1.30225388]
[1763643820670,0.02128479,91920.0,91919.0,1.30225388]
[1763643821005,0.02230634,91920.0,91919.0,1.30225388]
[1763643821528,0.02230634,91920.0,91919.0,1.08467101]
[1763643821727,0.06273634,91920.0,91919.0,1.30225388]
[1763643822300,0.06273634,91920.0,91919.0,1.08467101]
[1763643822745,0.06273634,91920.0,91915.0,0.01087961]
[1763643822945,0.05711427,91919.0,91911.0,0.01088009]
[1763643823139,0.01593,91913.0,91911.0,0.21760181]
[1763643823342,0.02026427,91912.0,91910.0,0.0108802]
[1763643823519,0.02026427,91911.0,91910.0,0.22848289]
[1763643824576,0.03619427,91911.0,91910.0,0.22848289]
[1763643824763,0.04187427,91911.0,91910.0,0.22848289]
[1763643825163,0.02594427,91911.0,91910.0,0.22848289]
[1763643827162,0.06637427,91911.0,91910.0,0.21760417]
[1763643827904,0.06637427,91911.0,91909.0,1.08467101]
[1763643828124,0.06069427,91910.0,91909.0,1.08467101]
[1763643829396,0.06069427,91910.0,91909.0,1.30227755]
[1763643829592,0.06069427,91910.0,91908.0,0.21760741]
[1763643829792,0.07304427,91909.0,91908.0,0.21760741]
[1763643830752,0.07304427,91909.0,91908.0,0.21760891]
[1763643830976,0.07304427,91909.0,91907.0,0.01088056]
[1763643831151,0.06069427,91908.0,91903.0,1.08467101]
[1763643831337,0.01593,91904.0,91903.0,1.08467101]
[1763643831542,0.03619427,91904.0,91903.0,1.08467101]
[1763643831742,0.06069427,91904.0,91903.0,1.08467101]
[1763643831985,0.06069427,91904.0,91893.0,0.22947514]
[1763643831986,0.00902023,91900.0,91893.0,0.00095062]
[1763643832175,0.02828,91894.0,91893.0,0.21859436]
[1763643832344,0.04854427,91894.0,91893.0,0.00095062]
[1763643832544,0.07304427,91894.0,91893.0,0.00095062]
[1763643833693,0.07404427,91894.0,91893.0,0.00095062]
[1763643834044,0.07504427,91894.0,91893.0,0.00095062]
[1763643835885,0.07404427,91894.0,91893.0,0.00095062]
[1763643836287,0.07504427,91894.0,91893.0,0.00095062]
[1763643836932,0.12714676,91894.0,91893.0,0.00095062]
[1763643837273,0.66678882,91894.0,91893.0,0.00095062]
[1763643837685,0.45014676,91894.0,91893.0,0.00095062]
[1763643837888,0.44914676,91894.0,91893.0,0.00095062]
[1763643838328,0.45014676,91894.0,91893.0,0.00095062]
[1763643838732,0.44914676,91894.0,91893.0,0.00095062]
[1763643839133,0.45014676,91894.0,91893.0,0.00095062]
[1763643839517,0.44814676,91894.0,91893.0,0.00095062]
[1763643839715,0.44914676,91894.0,91893.0,0.00095062]
[1763643839916,0.45014676,91894.0,91893.0,0.00095062]
[1763643840738,0.66778882,91894.0,91893.0,0.00095062]
[1763643841141,0.45017335,91894.0,91893.0,0.00095062]
[1763643841616,0.45385335,91894.0,91893.0,0.00095062]
[1763643842450,0.45017335,91894.0,91893.0,0.00095062]
[1763643842651,0.45385335,91894.0,91893.0,0.00095062]
[1763643842859,0.07507086,91894.0,91893.0,0.21859505]
[1763643843061,0.05057086,91894.0,91893.0,0.00095062]
[1763643843259,0.07738086,91894.0,91893.0,0.00095062]
[1763643844250,0.12948335,91894.0,91893.0,0.00095062]
[1763643845290,0.1566886,91894.0,91893.0,0.00095062]
[1763643845898,0.45248335,91894.0,91893.0,0.00095062]
[1763643846054,0.45249451,91894.0,91893.0,0.00095062]
[1763643846257,0.43219249,91894.0,91893.0,0.00095062]
[1763643846662,0.45249649,91894.0,91893.0,0.00095062]
[1763643847204,0.43219249,91894.0,91893.0,0.00095062]
[1763643847407,0.45249849,91894.0,91893.0,0.00095062]
[1763643848309,0.67014516,91894.0,91893.0,0.00095062]
[1763643850155,0.67014283,91894.0,91893.0,0.00095062]
[1763643851568,0.67014283,91894.0,91893.0,6.2e-07]
[1763643851569,0.69354077,91894.0,91893.0,6.2e-07]
[1763643851766,0.54069655,91871.0,91870.0,0.0004]
[1763643852001,0.05210249,91866.0,91860.0,0.0004]
[1763643852193,0.0272,91861.0,91860.0,0.0004]
[1763643852399,0.31733102,91861.0,91860.0,0.0004]
[1763643852599,0.12274077,91861.0,91860.0,0.0004]
[1763643853034,0.1227828,91861.0,91860.0,0.0004]
[1763643853702,0.1237828,91861.0,91860.0,0.0004]
[1763643854124,0.1284628,91861.0,91860.0,0.0004]
[1763643854555,0.1274628,91861.0,91860.0,0.0004]
[1763643854991,0.1294628,91861.0,91860.0,0.0004]
[1763643855206,0.1284628,91861.0,91860.0,0.0004]
[1763643855624,0.1304628,91861.0,91860.0,0.0004]
[1763643858359,0.34818305,91861.0,91860.0,0.0004]
[1763643859139,0.67118305,91861.0,91860.0,0.0004]
[1763643859542,0.69455814,91861.0,91860.0,0.0004]
[1763643859753,0.70470045,91861.0,91860.0,0.0004]
[1763643859946,0.70270045,91861.0,91860.0,0.0004]
[1763643860122,0.71977549,91861.0,91860.0,0.0004]
[1763643860316,0.72177549,91861.0,91860.0,0.0004]
[1763643860833,0.71977549,91861.0,91860.0,0.0004]
[1763643861036,0.72177549,91861.0,91860.0,0.0004]
[1763643861222,0.71977799,91861.0,91860.0,0.0004]
[1763643861422,0.72177799,91861.0,91860.0,0.0004]
[1763643862004,0.71777799,91861.0,91860.0,0.0004]
[1763643862207,0.72077799,91861.0,91860.0,0.0004]
[1763643862575,0.75002076,91861.0,91860.0,0.0004]
[1763643862783,2.72077799,91861.0,91860.0,0.00076656]
[1763643862980,2.72077799,91861.0,91860.0,0.00034463]
[1763643863185,2.72277799,91861.0,91860.0,0.00034463]
[1763643863649,2.72077799,91861.0,91860.0,0.00034463]
[1763643863838,2.72377799,91861.0,91860.0,0.00034463]
[1763643864179,2.72513994,91861.0,91860.0,0.00034463]
[1763643864379,2.72511674,91861.0,91860.0,0.00034463]
[1763643864582,2.72375479,91861.0,91860.0,0.00034463]
[1763643864791,2.74083084,91861.0,91860.0,0.00034463]
[1763643866964,2.51943059,91861.0,91860.0,0.00034463]
[1763643867310,0.51943059,91861.0,91860.0,0.00034463]
[1763643867522,0.52311059,91861.0,91860.0,0.00034463]
[1763643868824,0.74083084,91861.0,91860.0,0.00034463]
[1763643869602,0.51943059,91861.0,91860.0,0.00034463]
[1763643869809,0.50235454,91861.0,91860.0,0.00034463]
[1763643870028,0.4852795,91861.0,91860.0,0.00034463]
[1763643870250,0.48895752,91861.0,91860.0,0.00034463]
[1763643870451,0.70367777,91861.0,91860.0,0.00034463]
[1763643870782,0.70267777,91861.0,91860.0,0.00034463]
[1763643871138,0.70467777,91861.0,91860.0,0.00034463]
[1763643871944,0.70267777,91861.0,91860.0,0.00034463]
[1763643872130,0.70067777,91861.0,91860.0,0.00034463]
[1763643872356,0.70267777,91861.0,91860.0,0.00034463]
[1763643872782,0.21774395,91851.0,91850.0,0.0004]
[1763643872923,0.35007469,91851.0,91850.0,0.0004]
[1763643873123,0.37346469,91851.0,91850.0,0.0004]
[1763643873961,0.37546469,91851.0,91850.0,0.0004]
[1763643874367,0.38561769,91851.0,91850.0,0.0004]
[1763643874977,0.38929769,91851.0,91850.0,0.0004]
[1763643875321,0.36901459,91851.0,91850.0,0.0004]
[1763643875527,0.71433178,91851.0,91850.0,0.0004]
[1763643875727,0.73771993,91851.0,91850.0,0.0004]
[1763643876478,0.73571993,91851.0,91850.0,0.0004]
[1763643877194,0.73771993,91851.0,91850.0,0.0004]
[1763643878190,0.73771693,91851.0,91850.0,0.0004]
[1763643878392,0.73771693,91851.0,91850.0,0.00069035]
[1763643878992,0.54923681,91851.0,91850.0,0.00069035]
[1763643879310,0.73571693,91851.0,91850.0,0.00069035]
[1763643880104,0.73771693,91851.0,91850.0,0.00069035]
[1763643880300,0.77679983,91851.0,91850.0,0.00069035]
[1763643880503,2.73771693,91851.0,91850.0,0.00069035]
[1763643880754,0.59287015,91841.0,91830.0,0.0004]
[1763643880902,0.69828549,91841.0,91830.0,0.0004]
[1763643881357,0.69828549,91841.0,91800.0,0.0002]
[1763643881561,0.00902023,91810.0,91809.0,0.21784356]
[1763643881691,0.02399419,91810.0,91802.0,1.09556401]
[1763643881891,0.02817,91803.0,91802.0,0.21786017]
[1763643882144,0.04848419,91803.0,91800.0,0.22875679]
[1763643882319,0.04848419,91803.0,91796.0,0.01089372]
[1763643882320,0.01638,91801.0,91798.0,0.01089348]
[1763643882527,0.03669419,91800.0,91798.0,0.2287627]
[1763643882733,0.05216419,91799.0,91798.0,0.00042127]
[1763643882933,0.05216419,91799.0,91798.0,0.10958621]
[1763643883112,0.02399419,91799.0,91798.0,0.21829094]
[1763643883908,0.05216419,91799.0,91798.0,0.21829094]
[1763643884687,0.05316419,91799.0,91798.0,0.21829094]
[1763643885078,0.05216419,91799.0,91798.0,0.21829094]
[1763643885450,0.05316419,91799.0,91798.0,0.21829094]
[1763643885689,0.07655419,91799.0,91798.0,0.21829094]
[1763643886289,0.07655419,91799.0,91798.0,0.00042127]
[1763643886466,0.07558519,91799.0,91798.0,0.00042127]
[1763643886666,0.07658519,91799.0,91798.0,0.00042127]
[1763643886911,0.07658519,91799.0,91798.0,0.00193199]
[1763643887069,0.07658519,91799.0,91798.0,0.21980166]
[1763643887745,0.07758519,91799.0,91798.0,0.21980166]
[1763643888499,0.05419519,91799.0,91798.0,0.21980166]
[1763643888650,0.02602519,91799.0,91798.0,0.21980166]
[1763643889262,0.02234519,91799.0,91798.0,0.21980166]
[1763643889462,0.02602519,91799.0,91798.0,0.24805091]
[1763643889630,0.02602519,91799.0,91798.0,0.21980166]
[1763643895191,0.02234519,91799.0,91798.0,0.21980166]
[1763643895314,0.02602519,91799.0,91798.0,0.21980166]
[1763643895930,0.02234519,91799.0,91798.0,0.21980166]
[1763643896146,0.002,91799.0,91798.0,0.6519666]
[1763643896347,0.002,91799.0,91798.0,0.54280166]
[1763643897045,0.001,91799.0,91798.0,0.54280166]
[1763643897250,0.00368,91808.0,91807.0,0.21784831]
[1763643897447,0.02401369,91808.0,91807.0,1.30251932]
[1763643897650,0.02033369,91808.0,91807.0,1.30376845]
[1763643898048,0.00902023,91810.0,91809.0,0.21784356]
[1763643898049,0.01270023,91810.0,91809.0,0.21784356]
[1763643898264,0.03303384,91810.0,91809.0,0.21784356]
[1763643898442,0.03303384,91810.0,91809.0,0.21903456]
[1763643899926,0.03303384,91810.0,91809.0,0.29245206]
[1763643900146,0.03303384,91810.0,91809.0,0.21903456]
[1763643900351,0.03403384,91810.0,91809.0,0.21903456]
[1763643900622,0.03503384,91810.0,91809.0,0.21903456]
[1763643901067,0.02931444,91849.0,91828.0,0.21779849]
[1763643901336,0.00368,91884.0,91865.0,0.21771077]
[1763643901530,0.00368,91884.0,91865.0,1.30238178]
[1763643901764,0.00368,91884.0,91865.0,1.62538178]
[1763643901952,0.00368,91884.0,91865.0,1.73454672]
[1763643902152,0.00368,91887.0,91865.0,1.77621275]
[1763643902298,0.00368,91890.0,91865.0,1.77626314]
[1763643902683,0.00368,91890.0,91865.0,1.73459711]
[1763643903787,0.00368,91890.0,91865.0,1.62543217]
[1763643904021,0.00368,91890.0,91865.0,1.30243217]
[1763643904022,0.01201,91871.0,91865.0,1.30243217]
[1763643904239,0.01630208,91866.0,91865.0,1.0847214]
[1763643904441,0.01630208,91866.0,91865.0,5.039e-05]
[1763643904658,0.00092208,91866.0,91865.0,0.00105039]
[1763643905084,0.00092208,91866.0,91865.0,5.039e-05]
[1763643909247,0.00092208,91866.0,91865.0,0.00105039]
[1763643911985,0.00092208,91866.0,91865.0,0.32405039]
[1763643912534,0.0004,91900.0,91865.0,0.32405039]
[1763643912535,0.0004,91900.0,91897.0,0.22851488]
[1763643912745,0.0004,91900.0,91895.0,0.21763751]
[1763643912746,0.00368,91899.0,91895.0,0.21763751]
[1763643912969,0.00368,91899.0,91894.0,0.22852275]
[1763643913188,0.00368,91899.0,91896.0,0.01088186]
[1763643913402,0.00368,91899.0,91897.0,0.21763371]
[1763643913822,0.0004,91900.0,91897.0,0.2176841]
[1763643914045,0.0004,91900.0,91899.0,0.21763022]
[1763643914218,0.0014,91900.0,91899.0,0.21763022]
[1763643914662,0.0014,91900.0,91899.0,0.54063022]
[1763643914873,0.0014,91900.0,91899.0,0.47573009]
[1763643915090,0.0014,91900.0,91899.0,0.69336031]
[1763643915733,0.0004,91900.0,91899.0,0.69336031]
[1763643915948,0.0014,91900.0,91899.0,0.69336031]
[1763643916175,0.0014,91900.0,91899.0,0.64979516]
[1763643916383,0.0004,91900.0,91899.0,0.64979516]
[1763643917440,0.0004,91900.0,91899.0,0.54063022]
[1763643920115,0.0004,91900.0,91899.0,0.21763022]
[1763643920589,0.00138651,91900.0,91899.0,0.21763022]
[1763643921730,0.01676651,91900.0,91897.0,5.039e-05]
[1763643921905,0.01538,91899.0,91897.0,5.039e-05]
[1763643922072,0.01538,91898.0,91897.0,5.039e-05]
[1763643922274,0.03963,91898.0,91897.0,5.039e-05]
[1763643924657,0.01638,91898.0,91897.0,5.039e-05]
[1763643924859,0.04063,91898.0,91897.0,5.039e-05]
[1763643925161,0.04163,91898.0,91897.0,5.039e-05]
[1763643925625,0.002,91898.0,91897.0,5.039e-05]
[1763643925866,0.002,91898.0,91897.0,0.02154688]
[1763643926072,0.00568,91898.0,91897.0,0.02154688]
[1763643926469,0.02592279,91898.0,91897.0,0.02154688]
[1763643926785,0.02492279,91898.0,91897.0,0.02154688]
[1763643927174,0.02585248,91898.0,91897.0,0.02154688]
[1763643927474,0.02485248,91898.0,91897.0,0.02154688]
[1763643927831,0.02117248,91898.0,91897.0,0.02154688]
[1763643928270,0.02217248,91898.0,91897.0,0.02154688]
[1763643930089,0.0019285,91898.0,91897.0,0.3751283]
[1763643930377,0.0234122,91941.0,91934.0,0.01087736]
[1763643930636,0.03415721,91936.0,91934.0,0.22842411]
[1763643930811,0.02031814,91935.0,91934.0,0.22842411]
[1763643931025,0.02031572,91935.0,91934.0,0.22842411]
[1763643931581,0.02399572,91935.0,91934.0,0.29695154]
[1763643931987,0.02031572,91935.0,91934.0,0.29695154]
[1763643932188,0.0002,91960.0,91959.0,0.21748822]
[1763643932414,0.02459545,91960.0,91958.0,0.21749059]
[1763643932627,0.02029425,91959.0,91954.0,0.010875]
[1763643932843,0.0043012,91960.0,91955.0,0.01087488]
[1763643932990,0.02029381,91959.0,91956.0,0.01087476]
[1763643933221,0.02029381,91958.0,91955.0,0.01087488]
[1763643933419,0.02029381,91957.0,91955.0,0.21749768]
[1763643933623,0.02029381,91956.0,91954.0,0.010875]
[1763643933841,0.02029381,91955.0,91954.0,0.010875]
[1763643934862,0.02029381,91955.0,91953.0,0.01087512]
[1763643935067,0.02029381,91954.0,91953.0,0.22837618]
[1763643935274,0.001,91959.0,91760.0,0.4004]
[1763643935275,0.001,91959.0,91951.0,0.01087535]
[1763643935485,0.001,91959.0,91948.0,0.22838904]
[1763643935486,0.02026642,91958.0,91950.0,0.01087547]
[1763643935693,0.02026642,91957.0,91951.0,0.01087535]
[1763643935900,0.0043012,91960.0,91956.0,0.01087476]
[1763643936114,0.0043012,91960.0,91956.0,0.22836907]
[1763643936115,0.02026645,91959.0,91956.0,0.22836907]
[1763643936328,0.02026645,91958.0,91956.0,0.01087476]
[1763643936537,0.0043012,91960.0,91957.0,0.22836759]
[1763643936735,0.02026554,91959.0,91957.0,0.22836759]
[1763643936948,0.02026554,91958.0,91957.0,0.22836759]
[1763643937154,0.02026554,91958.0,91957.0,0.27730408]
[1763643937610,0.0006212,91960.0,91959.0,0.21748822]
[1763643941413,0.0006212,91960.0,91957.0,0.01087464]
[1763643941596,0.0006212,91960.0,91957.0,0.22836495]
[1763643941952,0.01724951,91958.0,91953.0,1.08467101]
[1763643942278,0.01724951,91958.0,91945.0,0.01087606]
[1763643942279,0.01551,91954.0,91943.0,1.08467101]
[1763643942453,0.01241,91946.0,91939.0,0.01087677]
[1763643942654,0.01551,91943.0,91940.0,0.01087665]
[1763643942953,0.01241,91946.0,91945.0,0.21752134]
[1763643943155,0.04356515,91962.0,91945.0,0.21752134]
[1763643943156,0.01241,91955.0,91950.0,0.01087547]
[1763643943369,0.01919,91946.0,91935.0,0.01087725]
[1763643943500,0.02024804,91945.0,91943.0,0.0108763]
[1763643943701,0.01919,91946.0,91942.0,0.01087642]
[1763643943896,0.02025257,91945.0,91943.0,0.22840237]
[1763643944099,0.03576257,91944.0,91941.0,0.22840697]
[1763643944298,0.00368,91946.0,91936.0,0.2175423]
[1763643944299,0.01551,91941.0,91936.0,0.2175423]
[1763643944613,0.01551,91941.0,91934.0,0.01087736]
[1763643944832,0.01551,91936.0,91935.0,0.01087725]
[1763643945042,0.01551,91936.0,91935.0,0.22842225]
[1763643945295,0.01551,91936.0,91929.0,0.01087796]
[1763643945471,0.01241,91935.0,91932.0,0.22842705]
[1763643945648,0.01241,91935.0,91934.0,0.21754737]
[1763643946231,0.01241,91935.0,91933.0,0.21754973]
[1763643946829,0.01551,91934.0,91920.0,0.01087902]
[1763643947031,0.01919,91933.0,91931.0,0.22843211]
[1763643947161,0.01919,91933.0,91932.0,0.02175521]
[1763643947162,0.00368,91933.0,91932.0,0.02175521]
[1763643947358,0.02394033,91933.0,91932.0,0.02175521]
[1763643947564,0.02394033,91933.0,91927.0,0.02175639]
[1763643947565,0.03945033,91933.0,91927.0,0.02175639]
[1763643947768,0.02026033,91932.0,91930.0,0.21755616]